[Event "Najdorf Memorial-A 2022"]
[Site "Warsaw"]
[Date "2022.07.17"]
[Round "9.5"]
[White "Iwanczuk, Krzysztof"]
[Black "Kotowicz, Kamil"]
[Result "1-0"]
[ECO "C10"]
[WhiteElo "1947"]
[BlackElo "1770"]
[Annotator "TA"]
[PlyCount "85"]
[EventDate "2022.07.09"]
[EventType "swiss"]
[EventCountry "POL"]
[SourceTitle "playchess.com"]
[Source "ChessBase"]
[SourceQuality "1"]
[TimeControl "40/5400+30:1800+30"]

{[%evp 12,85,47,31,37,40,41,37,46,36,35,39,39,46,113,108,104,13,10,17,24,-47,-44,-109,-114,-128,-124,-126,-110,-115,-100,-97,-97,-97,-81,-129,-114,-105,-84,-207,-182,-181,0,0,0,0,0,0,135,135,600,566,1166,1160,1156,1152,1143,1136,1136,1126,1112,1102,1071,1009,29991,29992,29992,29993,29993,29990,29992,524,1283,1286,1183,1168]} 1. e4 {[%emt 0:00:03]} e6 {[%emt 0:00:18]} 2. d4 {[%emt 0:00:07]} d5 {[%emt 0:00:02]} 3. Nc3 {[%emt 0:00:43]} dxe4 {[%emt 0:00:08]} 4. Nxe4 {[%emt 0:00:07]} b6 {[%emt 0:00:04]} 5. Nf3 {[%emt 0:04:10]} Bb7 {[%emt 0:00:09]} 6. Bb5+ {[%emt 0:01:04]} c6 {[%emt 0:00:09]} 7. Bd3 {[%emt 0:00:19]} Nd7 {[%emt 0:00:22] C03: French Tarrasch: Unusual Black 3rd moves.} 8. O-O {[%emt 0:01:21]} Ngf6 {[%emt 0:00:12]} 9. Nxf6+ {[%emt 0:00:37]} Nxf6 {[%emt 0:00:11] White is slightly better.} 10. c3 {[%emt 0:01:10]} Be7 {[%emt 0:00:27]} 11. Ne5 {[%emt 0:00:26]} O-O {[%emt 0:00:21]} 12. Qf3 {[%emt 0:03:03] [#]} Qc8 $146 {[%emt 0:09:02]} ({Black should play} 12... Qd5 $14) ({Predecessor:} 12... Qd5 13. Qh3 c5 14. Re1 cxd4 15. Bc4 Qc5 16. Bxe6 Bc8 17. Bxc8 Raxc8 18. Nd3 Qc7 19. cxd4 Nd5 20. Qf3 {½-½ (21) Dittrich,C (1815)-Daug,J (1794) Mecklenburg VP 2013}) 13. Qh3 {[%emt 0:01:09] White is much more active. The black rooks are badly placed.} c5 {[%emt 0:03:09]} 14. Ng4 {[%emt 0:06:34]} (14. Bg5 $16 g6 15. dxc5) 14... g6 $11 {[%emt 0:01:00]} 15. Bg5 {[%emt 0:02:14]} Qd8 {[%emt 0:01:49]} 16. Ne5 {[%emt 0:11:54]} (16. Bxf6 $11 Bxf6 17. dxc5) 16... cxd4 $15 {[%emt 0:03:13]} 17. c4 {[%emt 0:02:06]} (17. Rad1 $15) 17... Nd7 $17 {[%emt 0:01:13]} 18. Nxd7 {[%emt 0:09:38]} Qxd7 {[%emt 0:00:39]} ({Don't play} 18... Bxg5 $6 19. Nxf8 Qxf8 20. Qg3 $11) 19. Bh6 {[%emt 0:00:24]} Rfe8 {[%emt 0:00:56]} 20. f4 {[%emt 0:00:38]} Bf8 {[%emt 0:02:09]} 21. Bxf8 {[%emt 0:07:35]} Rxf8 {[%emt 0:00:07]} 22. Rae1 {[%emt 0:00:19]} Rac8 {[%emt 0:01:01]} 23. g4 {[%emt 0:14:14]} (23. Qg3 $142) 23... f5 {[%emt 0:01:46]} 24. Re5 {[%emt 0:01:39]} Rc5 {[%emt 0:02:11]} 25. Rfe1 {[%emt 0:00:34]} (25. Re2 $17) 25... Rxe5 {[%emt 0:01:59]} 26. Rxe5 {[%emt 0:00:10]} Qa4 $2 {[%emt 0:12:15] [#]} (26... Be4 $19 {White must now prevent ...fxg4.} 27. g5 (27. Bxe4 $2 fxe4 28. Rxe4 d3 $19) 27... Bb7) 27. gxf5 $11 {[%emt 0:01:47]} Qd1+ {[%emt 0:02:26]} (27... exf5 $2 28. Re7 Qd1+ 29. Bf1 $18) (27... Qxa2 $2 28. fxg6 Qa1+ 29. Bf1 Qxf1+ 30. Kxf1 $18) 28. Bf1 {[%emt 0:01:16] Hoping for fxg6.} gxf5 {[%emt 0:17:52]} 29. Rxe6 {[%emt 0:01:08] Threatens to win with Re7.} Kh8 {[%emt 0:00:38] [#]} (29... Be4 $11 {remains equal.} 30. Re7 Rf7 31. Re8+ Rf8 32. Rxf8+ (32. Re7 Rf7 $11) 32... Kxf8 33. Qh6+ Kf7) 30. Qh6 $1 $40 {[%emt 0:01:23][%cal Rh6f8][%mdl 128] White is out for blood. Really sharp!} Rg8+ {[%emt 0:00:10][%mdl 8192]} (30... Qg4+ $16 31. Kf2 Rb8) 31. Kf2 $18 {[%emt 0:00:16] Qf6+ would kill now.} Qc2+ {[%emt 0:18:50]} 32. Re2 {[%emt 0:00:46] Intending Qf6+ and mate.} d3 {[%emt 0:00:21]} 33. Rxc2 {[%emt 0:02:37]} dxc2 {[%emt 0:00:03]} 34. Qf6+ {[%emt 0:00:12]} Rg7 {[%emt 0:00:04]} 35. Qc3 {[%emt 0:01:46]} Be4 {[%emt 0:00:07]} 36. Be2 {[%emt 0:00:40]} Kg8 {[%emt 0:01:20]} 37. Bf3 {[%emt 0:00:13]} Bd3 {[%emt 0:00:39]} 38. Bd5+ {[%emt 0:01:11]} Kf8 {[%emt 0:00:22]} 39. Qf6+ {[%emt 0:00:14]} Ke8 {[%emt 0:00:17]} 40. Bc6+ {[%emt 0:00:00]} Rd7 {[%emt 0:00:00]} 41. Bxd7+ {[%emt 0:00:54]} (41. Qg7 $142 Bxc4 42. Bxd7+ Kd8 43. Bc6 Be6 44. Qf6+ Kc7 45. Qxe6 b5 46. Qd7+ Kb6 47. b4 c1=Q 48. Qb7#) 41... Kxd7 {[%emt 0:00:13]} 42. Qc3 {[%emt 0:00:19]} Be4 {[%emt 0:00:05]} 43. Ke3 {[%emt 0:00:30] Weighted Error Value: White=0.21 (precise) /Black=0.74} 1-0

[Event "Najdorf Memorial-A 2022"]
[Site "Warsaw"]
[Date "2022.07.17"]
[Round "9.7"]
[White "Hertlein, Irena"]
[Black "Lee, Hyo"]
[Result "0-1"]
[ECO "A50"]
[WhiteElo "1850"]
[BlackElo "1818"]
[Annotator "NA COMBH"]
[PlyCount "112"]
[EventDate "2022.07.09"]
[EventType "swiss"]
[EventCountry "POL"]
[SourceTitle "playchess.com"]
[Source "ChessBase"]
[SourceQuality "1"]
[TimeControl "40/5400+30:1800+30"]

1. d4 {[%emt 0:00:02]} Nf6 {[%emt 0:00:56]} 2. c4 {[%emt 0:00:12]} g6 {[%emt 0:00:31]} 3. h4 {[%emt 0:00:10]} Bg7 {[%emt 0:01:50]} 4. Nc3 {[%emt 0:00:19]} d6 {[%emt 0:02:54]} 5. e4 {[%emt 0:00:28]} Nc6 {[%emt 0:00:21]} 6. Nge2 {[%emt 0:00:39]} O-O {[%emt 0:01:56]} 7. f3 {[%emt 0:00:33]} e5 {[%emt 0:03:37]} 8. d5 {[%emt 0:01:13]} Nd4 {[%emt 0:01:56]} 9. Be3 {[%emt 0:01:37]} c5 {[%emt 0:01:45]} 10. dxc6 {[%emt 0:00:32]} Nxc6 {[%emt 0:00:09]} 11. g4 {[%emt 0:15:46]} Be6 {[%emt 0:05:10]} 12. b3 {[%emt 0:01:09]} Rc8 {[%emt 0:02:53]} 13. Qd2 {[%emt 0:13:41]} a6 {[%emt 0:04:15]} 14. Rd1 {[%emt 0:04:19]} Qa5 {[%emt 0:09:57]} 15. Nb1 {[%emt 0:20:58]} Nb4 {[%emt 0:17:14]} 16. Kf2 {[%emt 0:05:04]} Bxg4 {[%emt 0:05:36]} 17. a3 {[%emt 0:04:28]} Nc6 {[%emt 0:00:05]} 18. Qxa5 {[%emt 0:00:21]} Nxa5 {[%emt 0:00:04]} 19. fxg4 {[%emt 0:00:26]} Nxg4+ {[%emt 0:00:11]} 20. Kf3 {[%emt 0:00:28]} Nxe3 {[%emt 0:00:06]} 21. Kxe3 {[%emt 0:00:06]} Nxb3 {[%emt 0:01:14]} 22. Nec3 {[%emt 0:12:00]} Nd4 {[%emt 0:02:01]} 23. Nd5 {[%emt 0:01:08]} Bh6+ {[%emt 0:02:10]} 24. Kd3 {[%emt 0:01:12]} Kg7 {[%emt 0:01:38]} 25. h5 {[%emt 0:04:26]} b5 {[%emt 0:05:00]} 26. cxb5 {[%emt 0:01:45]} axb5 {[%emt 0:00:14]} 27. Rh2 {[%emt 0:02:13]} f5 {[%emt 0:07:13]} 28. hxg6 {[%emt 0:00:27]} Rc4 {[%emt 0:04:46]} 29. gxh7 {[%emt 0:06:16]} fxe4+ {[%emt 0:01:42]} 30. Kxe4 {[%emt 0:00:06]} Nb3+ {[%emt 0:01:18]} 31. Kd3 {[%emt 0:00:41]} e4+ {[%emt 0:00:10]} 32. Ke2 {[%emt 0:00:15]} Rc2+ {[%emt 0:00:07]} 33. Nd2 {[%emt 0:01:00]} Nd4+ {[%emt 0:01:33]} 34. Ke1 {[%emt 0:00:12]} Bxd2+ {[%emt 0:00:19]} 35. Rhxd2 {[%emt 0:00:47]} Nf3+ {[%emt 0:00:18]} 36. Ke2 {[%emt 0:00:05]} Rxd2+ {[%emt 0:00:07]} 37. Rxd2 {[%emt 0:00:09]} Nxd2 {[%emt 0:00:07]} 38. Bg2 {[%emt 0:00:42]} Nc4 {[%emt 0:09:23]} 39. Bxe4 {[%emt 0:00:44]} Nxa3 {[%emt 0:01:23]} 40. Kd3 {[%emt 0:00:00]} Rb8 {[%emt 0:00:00]} 41. Kc3 {[%emt 0:08:15]} Nc4 {[%emt 0:03:19]} 42. Kb4 {[%emt 0:00:48]} Nb6 {[%emt 0:02:46]} 43. Nc3 {[%emt 0:03:39]} Nc8 {[%emt 0:04:13]} 44. Nd5 {[%emt 0:09:02]} Na7 {[%emt 0:00:30]} 45. Ne7 {[%emt 0:00:51]} Rd8 {[%emt 0:03:03]} 46. Nf5+ {[%emt 0:03:11]} Kh8 {[%emt 0:00:33]} 47. Nh6 {[%emt 0:02:27]} Rd7 {[%emt 0:00:25]} 48. Bg6 {[%emt 0:03:13]} Nc6+ {[%emt 0:01:21]} 49. Kxb5 {[%emt 0:00:23]} Ne5 {[%emt 0:00:04]} 50. Be4 {[%emt 0:03:22]} d5 {[%emt 0:00:35]} 51. Bf5 {[%emt 0:01:12]} Rd6 {[%emt 0:01:28]} 52. Ng8 {[%emt 0:01:33]} d4 {[%emt 0:01:51]} 53. Kc5 {[%emt 0:00:27]} Rd8 {[%emt 0:00:07]} 54. Nf6 {[%emt 0:01:47]} d3 {[%emt 0:01:57]} 55. Nd5 {[%emt 0:00:25]} d2 {[%emt 0:00:07]} 56. Bc2 {[%emt 0:00:06]} Nd3+ {[%emt 0:00:08]} 0-1

[Event "Najdorf Memorial-A 2022"]
[Site "Warsaw"]
[Date "2022.07.17"]
[Round "9.8"]
[White "Kulpa, Zuzanna"]
[Black "Wadelek, Karol"]
[Result "0-1"]
[ECO "E45"]
[WhiteElo "1985"]
[BlackElo "1944"]
[Annotator "TA"]
[PlyCount "102"]
[EventDate "2022.07.09"]
[EventType "swiss"]
[EventCountry "POL"]
[SourceTitle "playchess.com"]
[Source "ChessBase"]
[SourceQuality "1"]
[TimeControl "40/5400+30:1800+30"]

{[%evp 14,102,21,0,4,-6,-14,-14,-6,-18,-9,-30,0,-3,6,-22,-20,-49,-35,-65,-55,-75,-60,-82,-103,-114,-95,-102,-97,-71,-66,-68,-56,-64,-64,-81,-81,-82,-72,-72,-82,-111,-102,-108,-110,-214,-214,-214,-206,-221,-214,-214,-206,-213,-199,-362,-203,-223,-187,-232,-231,-278,-250,-395,-307,-299,0,-381,-336,-446,-453,-543,-302,-354,-369,-339,-358,-604,-591,-29971,-29972,-5002,-508,-1037,-1043,-29987,-29988,-29988,-29989,-29989,-29990]} 1. d4 {[%emt 0:00:03]} Nf6 {[%emt 0:20:43]} 2. c4 {[%emt 0:00:06]} e6 {[%emt 0:00:05]} 3. Nc3 {[%emt 0:00:06]} Bb4 {[%emt 0:00:18]} 4. e3 {[%emt 0:00:10]} b6 {[%emt 0:00:10]} 5. Nge2 {[%emt 0:00:27]} Ba6 {[%emt 0:00:07]} 6. a3 {[%emt 0:00:39]} Bxc3+ {[%emt 0:00:04] 6...Bxc3+ is better than 6...Be7.} 7. Nxc3 {[%emt 0:00:04]} d5 {[%emt 0:00:03]} 8. cxd5 {[%emt 0:07:52]} Bxf1 {[%emt 0:03:28] E45: Nimzo-Indian: Rubinstein: 4...b6 5 Ne2 Ba6.} 9. Kxf1 {[%emt 0:00:01]} exd5 {[%emt 0:00:56]} 10. g3 {[%emt 0:02:27]} O-O {[%emt 0:00:20] The position is equal.} 11. Kg2 {[%emt 0:00:11]} Re8 {[%emt 0:00:35]} 12. b4 {[%emt 0:05:05] [#]} a6 $146 ({Predecessor:} 12... Nc6 13. Qc2 Ne7 14. Ne2 Qd7 15. h3 Nf5 16. Bd2 Nd6 17. Rhc1 Nc4 18. Qd3 Ne4 {0-1 (47) Yaniuk,V (2227)-Kazakovskiy,V (2495) Chess.com INT 2021}) 13. Re1 Nbd7 {[%emt 0:09:41]} 14. Qf3 {[%emt 0:10:08]} c6 {[%emt 0:05:39]} 15. Bb2 {[%emt 0:08:23]} Qe7 {[%emt 0:07:07]} 16. Qe2 {[%emt 0:09:17]} b5 {[%emt 0:02:20]} 17. f3 {[%emt 0:06:20]} Nb6 {[%emt 0:04:46]} 18. e4 {[%emt 0:02:32]} dxe4 $1 {[%emt 0:03:19]} 19. Nxe4 {[%emt 0:00:55]} Nfd5 {[%emt 0:02:14]} 20. Qf2 {[%emt 0:04:57]} Qf8 {[%emt 0:06:57]} 21. Nc5 {[%emt 0:05:19]} Rxe1 {[%emt 0:01:03]} 22. Rxe1 {[%emt 0:00:17]} a5 {[%emt 0:00:50]} 23. bxa5 {[%emt 0:03:30]} Rxa5 {[%emt 0:00:10]} 24. Re2 {[%emt 0:01:00]} Nc4 {[%emt 0:02:29] Pair of Knights!} 25. Qe1 {[%emt 0:00:50]} Ra8 {[%emt 0:00:07]} 26. Bc1 {[%emt 0:01:02]} h6 {[%emt 0:02:21]} (26... Nxa3 $2 27. Bxa3 h6 28. Bb4 $18) 27. Nd7 {[%emt 0:05:17] [#]} Qc8 {[%emt 0:02:18]} 28. Nc5 {[%emt 0:12:09]} Kh7 {[%emt 0:00:37]} (28... Nxa3 $2 29. Bxa3 Qf5 30. Re8+ Rxe8 31. Qxe8+ $18) 29. Qd1 {[%emt 0:00:09]} (29. Ra2 $17) 29... Rxa3 $19 {[%emt 0:03:16]} 30. Qc2+ {[%emt 0:02:02]} Kg8 {[%emt 0:00:19]} 31. Qe4 {[%emt 0:02:44] Prevents Nde3+. Hoping for Qe8+.} Ra8 {[%emt 0:00:48] And now ...Nc3 would win.} 32. Qd3 {[%emt 0:01:57] Prevents Nc3.} Ra1 {[%emt 0:01:30]} 33. Qc2 {[%emt 0:04:45]} Ra7 {[%emt 0:03:13]} 34. Nd3 $2 {[%emt 0:02:48] [#]} (34. Kg1) 34... Qd8 {[%emt 0:03:09]} (34... Ra3 $142 $1 {[%mdl 512]} 35. Kg1 (35. g4 f5) 35... Rc3) 35. Ne5 {[%emt 0:01:10]} Nxe5 {[%emt 0:01:04]} 36. Rxe5 {[%emt 0:00:41]} Qd7 {[%emt 0:02:39]} 37. Bd2 {[%emt 0:01:48]} b4 {[%emt 0:01:22]} 38. Qb2 {[%emt 0:00:45]} (38. Re2 $142) 38... Rb7 {[%emt 0:00:43]} 39. Qb3 {[%emt 0:00:19]} Ra7 {[%emt 0:02:21]} 40. Qb2 $1 {[%emt 0:00:00]} Ra8 {[%emt 0:00:00]} 41. Re2 {[%emt 0:04:16]} Qf5 {[%emt 0:04:22] aiming for ...Qd3.} 42. Re4 {[%emt 0:05:14]} Rb8 {[%emt 0:04:06]} 43. Qc2 {[%emt 0:02:07][%cal Oe4e8]} Qd7 {[%emt 0:00:08] Inhibits Re8+.} 44. Qb3 {[%emt 0:00:23]} Nf6 {[%emt 0:00:25]} 45. Rh4 {[%emt 0:05:12]} (45. Re2) 45... Qe6 {[%emt 0:02:58]} 46. Qb2 {[%emt 0:04:02]} Qe2+ {[%emt 0:01:03]} 47. Kg1 {[%emt 0:00:24]} Nd5 {[%emt 0:02:52]} (47... Re8 $142 {( -> ...Qd1+)} 48. Qc1 b3 49. Rxh6 b2 50. Qxb2 Qd1+ 51. Kg2 Re2+ 52. Kh3 Qf1+ 53. Kh4 Rxh2+ 54. Kg5 Rxh6 55. Qb8+ Kh7 56. Qb3 Nd5 57. Qxd5 cxd5 58. Kg4 Qh3+ 59. Kf4 Re6 60. g4 Qh2+ 61. Kg5 Qh6+ 62. Kf5 g6#) 48. Qc1 {[%emt 0:01:31] Prevents Qd1+.} (48. Re4 $142 Qxf3 49. Re1) 48... b3 {[%emt 0:00:48][%cal Bb4b3,Bb3b2][%mdl 32]} 49. Bxh6 {[%emt 0:02:39]} b2 {[%emt 0:00:50] Black mates.} 50. Qb1 {[%emt 0:00:06]} gxh6 {[%emt 0:00:49]} 51. Rg4+ {[%emt 0:00:45]} Kf8 {[%emt 0:00:57] Weighted Error Value: White=0.66/Black=0.32} 0-1

[Event "Najdorf Memorial-A 2022"]
[Site "Warsaw"]
[Date "2022.07.17"]
[Round "9.9"]
[White "Lasota, Adam"]
[Black "Pettersson, Alexander"]
[Result "1-0"]
[ECO "D00"]
[WhiteElo "1892"]
[BlackElo "1968"]
[Annotator "TA"]
[PlyCount "23"]
[EventDate "2022.07.09"]
[EventType "swiss"]
[EventCountry "POL"]
[SourceTitle "playchess.com"]
[Source "ChessBase"]
[SourceQuality "1"]
[TimeControl "40/5400+30:1800+30"]

{[%evp 9,23,0,13,16,8,9,20,12,25,16,24,7,440,439,492,484]} 1. d4 d5 2. Bf4 c5 3. e3 cxd4 4. exd4 Nc6 5. c3 f6 6. Nf3 {Prevents e5. B13: Caro-Kann: Exchange Variation and Panov-Botvinnik Attack.} Bg4 {[%cal Oe7e5]} 7. Be2 e6 8. h3 {The position is equal.} Bh5 {[#]} 9. Qb3 $146 ({Predecessor:} 9. O-O Bd6 10. Bxd6 Qxd6 11. c4 Nge7 12. Nc3 O-O 13. c5 Qd7 14. a3 Rad8 15. b4 {1-0 (29) Moroni,L (2588)-Solon,N (2306) Chess.com INT 2022}) 9... Qd7 10. Nbd2 Bd6 $2 {[%mdl 8192] [#]} (10... Bf7 $11) 11. Bxd6 $18 Qxd6 12. Qxb7 {Black got outplayed after the opening.  Weighted Error Value: White=0.04 (flawless) /Black=0.99} 1-0

[Event "Najdorf Memorial-A 2022"]
[Site "Warsaw"]
[Date "2022.07.17"]
[Round "9.10"]
[White "Siekanska, Maria"]
[Black "Michalska, Aleksandra"]
[Result "1/2-1/2"]
[ECO "D35"]
[WhiteElo "1964"]
[BlackElo "1814"]
[Annotator "TA"]
[PlyCount "88"]
[EventDate "2022.07.09"]
[EventType "swiss"]
[EventCountry "POL"]
[SourceTitle "playchess.com"]
[Source "ChessBase"]
[SourceQuality "1"]
[TimeControl "40/5400+30:1800+30"]

{[%evp 13,88,24,22,22,34,27,56,38,61,55,69,28,45,40,70,79,83,54,83,46,50,54,51,48,46,56,61,64,56,56,54,46,51,51,61,36,46,29,50,46,50,54,68,58,91,61,79,45,73,73,95,81,112,69,66,63,198,31,181,126,187,72,76,77,77,55,48,29,22,4,16,-7,-8,-8,-8,-8,-8]} 1. d4 Nf6 2. c4 e6 3. Nc3 d5 4. cxd5 exd5 5. Bg5 c6 6. e3 h6 7. Bh4 Bf5 8. Qf3 {D35: Queen's Gambit Declined: Exchange Variation.} Bg6 {8...Bh7 is the modern continuation.} 9. Bxf6 gxf6 10. Qd1 {[#] White is slightly better.} (10. Rd1 $5 {[%cal Rf1d3]}) 10... Bd6 $146 ({Predecessor:} 10... Nd7 11. Bd3 Rg8 12. Nge2 Bd6 13. Ng3 Qe7 14. Qc2 h5 15. Kf1 Qe6 16. Nf5 Bc7 {1-0 (64) Kveinys,A (2533)-Savchenko,B (2648) Gjovik 2009}) 11. Nf3 Nd7 12. Be2 Rg8 13. g3 Nf8 14. Nh4 Qd7 15. Bd3 (15. Nxg6 fxg6 16. Qa4 Ke7 $14) 15... Ne6 16. Qe2 {[%cal Oc3d5] aiming for Nxd5!} ({But not} 16. Nxg6 fxg6 17. h4 O-O-O $11) 16... O-O-O {[%cal Oe6d4]} 17. O-O-O Kb8 18. Kb1 Ng5 19. Qc2 {[%cal Rh4g6]} Bh5 20. Rc1 Qe8 21. h3 Bg6 22. Nf5 Bf8 23. g4 h5 24. a3 {[%cal Ba2a3,Ba3a4][%mdl 32]} hxg4 25. hxg4 Ne6 26. b4 Nc7 27. Qb3 a6 28. a4 {White is much more active. The black rooks are badly placed.} Bxf5 29. Bxf5 Qe7 30. Na2 (30. b5 $5 {[%cal Rb5c6]}) 30... Bg7 31. Rh7 Qf8 32. Rch1 {[%cal Bc1h1,Bh1h7,Bh7f7][%mdl 32]} Rh8 33. Nc1 Rxh7 34. Rxh7 Ne8 ({Black should try} 34... Qg8 $1 $14) 35. Ne2 $2 (35. b5 $18) 35... Qe7 {[#]} (35... Nd6 $14) 36. Nf4 (36. b5 $1 $18) 36... Bf8 (36... Qc7 $16 37. b5 axb5) 37. Ng6 (37. b5 $18 {and White stays clearly on top. bxc6 is the strong threat.} cxb5 38. axb5) 37... Qxb4 $16 38. Qxb4 Bxb4 39. Rxf7 Be1 $1 40. f4 Bd2 41. Re7 {The position is equal.} Nd6 42. Bd3 Re8 43. Rxe8+ Nxe8 44. e4 dxe4 {Weighted Error Value: White=0.24 (precise) /Black=0.20 (precise)} 1/2-1/2

[Event "Najdorf Memorial-A 2022"]
[Site "Warsaw"]
[Date "2022.07.17"]
[Round "9.11"]
[White "Jaskiewicz, Kacper"]
[Black "Polak, Michal"]
[Result "1-0"]
[ECO "B27"]
[WhiteElo "1756"]
[BlackElo "1944"]
[Annotator "TA"]
[PlyCount "109"]
[EventDate "2022.07.09"]
[EventType "swiss"]
[EventCountry "POL"]
[SourceTitle "playchess.com"]
[Source "ChessBase"]
[SourceQuality "1"]
[TimeControl "40/5400+30:1800+30"]

{[%evp 15,109,-29,-20,-45,-47,-97,-72,-94,-85,-67,-54,-59,-62,-93,-87,-73,-33,-145,-149,-142,-134,-188,-187,-193,-189,-171,-185,-192,-168,-195,-164,-175,-133,-152,-102,-122,-40,-64,-45,-48,-45,-41,0,0,0,0,0,0,0,0,0,0,0,0,0,0,0,0,0,0,0,0,0,0,0,0,0,0,0,0,0,0,0,0,0,0,0,0,37,14,19,51,52,70,221,162,12842,12843,12843,12843,12844,12844,12845,12844,12845,12846]} 1. e4 {[%emt 0:00:03]} c5 {[%emt 0:00:16]} 2. Nf3 {[%emt 0:00:58]} g6 {[%emt 0:00:06]} 3. d4 {[%emt 0:00:42]} cxd4 {[%emt 0:00:08]} 4. Nxd4 {[%emt 0:00:01]} Bg7 {[%emt 0:00:10]} 5. c3 {[%emt 0:02:46]} Nc6 {[%emt 0:00:22][%cal Bb8c6,Bc6e5,Be5f3][%mdl 32]} 6. Be3 {[%emt 0:00:28]} Nf6 {[%emt 0:00:08]} 7. Nd2 {[%emt 0:00:36]} O-O {[%emt 0:00:12]} 8. Be2 {[%emt 0:00:43]} d5 {[%emt 0:01:19]} 9. Bf3 {[%emt 0:01:57] B34: Sicilian: Accelerated Dragon with 5 Nc3: sidelines.} Ne5 {[%emt 0:04:30]} 10. exd5 {[%emt 0:10:42]} (10. O-O $15) 10... Nxf3+ {[%emt 0:03:39]} (10... Nd3+ {keeps more tension.} 11. Ke2 Nxd5 12. Kxd3 e5) 11. N2xf3 {[%emt 0:02:06] Black is better.} Nxd5 {[%emt 0:00:16] [#]} 12. Nc2 $146 {[%emt 0:05:22]} ({Predecessor:} 12. Qe2 Nxe3 13. Qxe3 e5 14. Nb3 b6 15. O-O Qc7 16. Rad1 Bb7 17. Rd2 Rad8 18. Rfd1 Rxd2 19. Rxd2 {0-1 (81) Nugaev,N (1985)-Kushka,A (2102) St Petersburg 2008}) 12... Nxe3 {[%emt 0:01:05]} 13. Nxe3 {[%emt 0:00:02]} Qb6 {[%emt 0:04:07]} 14. Qb3 {[%emt 0:03:35]} Qa6 {[%emt 0:03:22]} 15. Qc4 {[%emt 0:01:05]} b5 {[%emt 0:01:47][%cal Bb7b5,Bb5b4,Bb4b3][%mdl 32]} 16. Qe2 {[%emt 0:02:15] [#]} (16. Qb4 $1 $15) 16... b4 $1 $17 {[%emt 0:03:17]} 17. c4 {[%emt 0:07:04]} b3 {[%emt 0:04:23]} 18. a3 {[%emt 0:10:22]} (18. a4 $17) 18... Qa5+ $19 {[%emt 0:00:13]} 19. Qd2 {[%emt 0:00:03]} Qxd2+ {[%emt 0:00:22]} 20. Nxd2 {[%emt 0:00:01]} Bxb2 {[%emt 0:00:18]} 21. Rb1 {[%emt 0:00:02]} Bxa3 {[%emt 0:00:13]} 22. Rxb3 {[%emt 0:00:02]} Bc5 {[%emt 0:02:13] This bishop pair is nice.} 23. Nd5 {[%emt 0:00:52]} Bf5 {[%emt 0:40:45]} 24. Ke2 {[%emt 0:09:24]} Rfb8 {[%emt 0:01:34]} ({Black should try} 24... Kg7 25. Ra1 Rfd8) 25. Ra1 {[%emt 0:01:10]} Bd4 {[%emt 0:07:33]} (25... Be6 $17 26. f3 Rc8) 26. Ra2 $15 {[%emt 0:03:37]} Kf8 {[%emt 0:06:18]} 27. Nc7 {[%emt 0:13:04]} Rxb3 {[%emt 0:00:09]} 28. Nxb3 {[%emt 0:00:00]} Rc8 {[%emt 0:01:11] aiming for ...Bb6.} 29. Nxd4 {[%emt 0:00:11]} Rxc7 {[%emt 0:00:12]} 30. Nxf5 {[%emt 0:04:05]} gxf5 $11 {[%emt 0:00:09][%mdl 4096] Endgame KR-KR} 31. Kd3 {[%emt 0:00:01]} Ke8 {[%emt 0:03:53]} 32. Kd4 {[%emt 0:00:57]} Kd7 {[%emt 0:03:44]} 33. Ra3 {[%emt 0:04:02]} f6 {[%emt 0:02:46]} 34. Ra5 {[%emt 0:03:09]} e6 {[%emt 0:02:04]} 35. Ra6 {[%emt 0:00:17]} Ke7 {[%emt 0:01:18]} 36. Ra2 {[%emt 0:03:07]} Kd8 {[%emt 0:00:45]} 37. Ra6 {[%emt 0:03:51]} Kd7 {[%emt 0:00:13]} 38. Ra3 {[%emt 0:01:23]} Kc8 {[%emt 0:00:31]} 39. Ra6 {[%emt 0:00:26]} Kd7 {[%emt 0:01:17]} 40. Ra3 {[%emt 0:00:00]} Rb7 {[%emt 0:00:00]} 41. Ra6 {[%emt 0:06:41]} Rc7 {[%emt 0:01:10]} 42. Ra3 {[%emt 0:00:33]} Ke7 {[%emt 0:01:47]} 43. Ra2 {[%emt 0:03:49]} Kf7 {[%emt 0:00:15]} 44. c5 {[%emt 0:01:28][%cal Bc4c5,Bc5c6][%mdl 32]} Ke8 {[%emt 0:07:00]} 45. Kc4 {[%emt 0:00:43]} Ke7 {[%emt 0:02:53]} 46. Kb5 {[%emt 0:01:51]} f4 {[%emt 0:06:48]} 47. c6 {[%emt 0:02:14][%mdl 1024] And now Rd2 would win. White has compensation.} e5 $1 {[%emt 0:00:42][%cal Be6e5,Be5e4][%mdl 32]} 48. Kc5 {[%emt 0:00:24] Black must now prevent Rb2.} e4 {[%emt 0:02:24]} 49. Rb2 {[%emt 0:00:22] Strongly threatening Rb7.} Ke6 $2 {[%emt 0:07:04]} (49... e3 $14) 50. Rb7 $18 {[%emt 0:00:51]} Re7 {[%emt 0:00:02] [#]} (50... Rc8 51. Rxa7 (51. Rxh7 Rg8 $14) 51... h5) 51. c7 $1 {[%emt 0:01:01] White is clearly winning.} Rxc7+ {[%emt 0:03:02]} 52. Rxc7 {[%emt 0:00:03]} e3 {[%emt 0:00:06]} 53. fxe3 {[%emt 0:00:02]} fxe3 {[%emt 0:00:18]} 54. Kd4 {[%emt 0:00:01]} Kd6 {[%emt 0:00:20]} 55. Rxa7 {Quite a comeback for White.  Weighted Error Value: White=0.13 (very precise) /Black=0.17 (very precise)} 1-0